[Event "Teplice Open 2019"]
[Site "Teplice"]
[Date "2019.06.23"]
[Round "9.14"]
[White "Song, Raymond"]
[Black "Mazur, Stefan"]
[Result "1/2-1/2"]
[ECO "C55"]
[WhiteElo "2450"]
[BlackElo "2426"]
[Annotator "ChessBase"]
[PlyCount "68"]
[EventDate "2019.06.15"]
[EventType "swiss"]
[EventCountry "CZE"]
[SourceTitle "playchess.com"]
[Source "ChessBase"]
[SourceQuality "1"]
[TimeControl "40/5400+30:1800+30"]

1. e4 {[%emt 0:00:00]} e5 {[%emt 0:00:00]} 2. Nf3 {[%emt 0:00:00]} Nc6 {[%emt 0:00:00]} 3. Bc4 {[%emt 0:00:00]} Nf6 {[%emt 0:00:17]} 4. d3 {[%emt 0:00:01]} Be7 {[%emt 0:01:09]} 5. O-O {[%emt 0:00:40]} O-O {[%emt 0:00:06]} 6. Re1 {[%emt 0:00:02]} d6 {[%emt 0:00:08]} 7. a4 {[%emt 0:00:05]} Kh8 {[%emt 0:00:54]} 8. h3 {[%emt 0:00:06]} Ng8 {[%emt 0:00:05]} 9. Nc3 {[%emt 0:00:25]} f5 {[%emt 0:00:10]} 10. Nd5 {[%emt 0:00:04]} Bf6 {[%emt 0:00:59]} 11. a5 {[%emt 0:00:04]} a6 {[%emt 0:00:16]} 12. c3 {[%emt 0:00:09]} fxe4 {[%emt 0:01:03]} 13. dxe4 {[%emt 0:00:04]} Nce7 {[%emt 0:00:08]} 14. Bd3 {[%emt 0:01:30]} Be6 {[%emt 0:07:23]} 15. c4 {[%emt 0:00:11]} c5 {[%emt 0:03:14]} 16. Ng5 {[%emt 0:04:32]} Bxg5 {[%emt 0:02:44]} 17. Bxg5 {[%emt 0:00:12]} Bxd5 {[%emt 0:00:13]} 18. exd5 {[%emt 0:00:08]} Qd7 {[%emt 0:03:42]} 19. b4 {[%emt 0:08:23]} cxb4 {[%emt 0:02:15]} 20. Qa4 {[%emt 0:00:23]} Qc7 {[%emt 0:01:34]} 21. Qxb4 {[%emt 0:00:48]} Nf5 {[%emt 0:05:08]} 22. Rab1 {[%emt 0:04:24]} Rf7 {[%emt 0:03:46]} 23. Qb6 {[%emt 0:00:32]} Qd7 {[%emt 0:01:40]} 24. c5 {[%emt 0:00:05]} h6 {[%emt 0:15:58]} 25. c6 {[%emt 0:05:12]} bxc6 {[%emt 0:00:17]} 26. dxc6 {[%emt 0:00:06]} Qe6 {[%emt 0:01:36]} 27. Bd2 {[%emt 0:00:55]} Raf8 {[%emt 0:30:38]} 28. c7 {[%emt 0:09:46]} Nh4 {[%emt 0:04:09]} 29. Rb2 {[%emt 0:14:23]} Nxg2 {[%emt 0:02:31]} 30. Kxg2 {[%emt 0:02:39]} Rf3 {[%emt 0:00:15]} 31. Bf1 {[%emt 0:03:41]} Qxh3+ {[%emt 0:05:19]} 32. Kg1 {[%emt 0:00:01]} Rg3+ {[%emt 0:00:18]} 33. fxg3 {[%emt 0:00:55]} Rxf1+ {[%emt 0:00:08]} 34. Rxf1 {[%emt 0:00:04]} Qxg3+ {[%emt 0:00:09]} 1/2-1/2

[Event "Teplice Open 2019"]
[Site "Teplice"]
[Date "2019.06.23"]
[Round "9.15"]
[White "Janik, Igor"]
[Black "Rubes, Jan"]
[Result "1-0"]
[ECO "A61"]
[WhiteElo "2483"]
[BlackElo "2352"]
[Annotator "ChessBase"]
[PlyCount "79"]
[EventDate "2019.06.15"]
[EventType "swiss"]
[EventCountry "CZE"]
[SourceTitle "playchess.com"]
[Source "ChessBase"]
[SourceQuality "1"]
[TimeControl "40/5400+30:1800+30"]

1. d4 {[%emt 0:00:00]} Nf6 {[%emt 0:00:00]} 2. c4 {[%emt 0:00:00]} e6 {[%emt 0:00:00]} 3. Nf3 {[%emt 0:00:00]} c5 {[%emt 0:00:00]} 4. d5 {[%emt 0:00:00]} exd5 {[%emt 0:00:01]} 5. cxd5 {[%emt 0:00:00]} d6 {[%emt 0:00:07]} 6. Nc3 {[%emt 0:00:00]} g6 {[%emt 0:00:07]} 7. Bf4 {[%emt 0:00:00]} a6 {[%emt 0:00:11]} 8. a4 {[%emt 0:00:00]} Bg7 {[%emt 0:00:19]} 9. h3 {[%emt 0:00:03]} O-O {[%emt 0:00:06]} 10. e3 {[%emt 0:00:03]} Ne8 {[%emt 0:00:06]} 11. Nd2 {[%emt 0:00:29]} Nd7 {[%emt 0:00:10]} 12. Be2 {[%emt 0:00:14]} f5 {[%emt 0:00:36]} 13. O-O {[%emt 0:01:45]} g5 {[%emt 0:01:56]} 14. Bh2 {[%emt 0:00:03]} f4 {[%emt 0:00:04]} 15. exf4 {[%emt 0:04:36]} gxf4 {[%emt 0:00:07]} 16. a5 {[%emt 0:00:30]} Ne5 {[%emt 0:02:42]} 17. Nf3 {[%emt 0:00:58]} Nxf3+ {[%emt 0:05:57]} 18. Bxf3 {[%emt 0:00:27]} Qg5 {[%emt 0:01:00]} 19. Kh1 {[%emt 0:02:54]} Be5 {[%emt 0:04:30]} 20. Qd2 {[%emt 0:02:28]} Ng7 {[%emt 0:02:05]} 21. b4 {[%emt 0:07:52]} cxb4 {[%emt 0:01:10]} 22. Ne4 {[%emt 0:00:06]} Qh6 {[%emt 0:09:47]} 23. Rab1 {[%emt 0:01:59]} Nf5 {[%emt 0:02:08]} 24. Bg4 {[%emt 0:03:49]} Nh4 {[%emt 0:03:56]} 25. f3 {[%emt 0:00:14]} Nf5 {[%emt 0:04:26]} 26. Bxf5 {[%emt 0:04:32]} Bxf5 {[%emt 0:01:55]} 27. Rxb4 {[%emt 0:02:01]} Rac8 {[%emt 0:17:53]} 28. Rxb7 {[%emt 0:03:03]} Bxe4 {[%emt 0:02:45]} 29. fxe4 {[%emt 0:00:09]} Qg6 {[%emt 0:00:59]} 30. Qe2 {[%emt 0:02:13]} Rc3 {[%emt 0:00:15]} 31. Bg1 {[%emt 0:05:25]} Rfc8 {[%emt 0:02:03]} 32. Ra7 {[%emt 0:03:53]} h5 {[%emt 0:01:23]} 33. Rb1 {[%emt 0:03:33]} f3 {[%emt 0:09:00]} 34. gxf3 {[%emt 0:01:30]} Rc1 {[%emt 0:00:05]} 35. Rxc1 {[%emt 0:01:08]} Rxc1 {[%emt 0:00:05]} 36. Ra8+ {[%emt 0:00:07]} Kh7 {[%emt 0:05:54]} 37. Qf2 {[%emt 0:09:46]} Rd1 {[%emt 0:09:15]} 38. Ra7+ {[%emt 0:06:26]} Kh6 {[%emt 0:02:59]} 39. Re7 {[%emt 0:01:27]} Bd4 {[%emt 0:01:47]} 40. Qxd4 {[%emt 0:00:27]} 1-0

[Event "Teplice Open 2019"]
[Site "Teplice"]
[Date "2019.06.23"]
[Round "9.21"]
[White "Abdumalik, Zhansaya"]
[Black "Sprenar, Petr"]
[Result "1-0"]
[ECO "C18"]
[WhiteElo "2464"]
[BlackElo "2320"]
[Annotator "RC"]
[PlyCount "83"]
[EventDate "2019.06.15"]
[EventType "swiss"]
[EventCountry "CZE"]
[SourceTitle "playchess.com"]
[Source "ChessBase"]
[SourceQuality "1"]
[TimeControl "40/5400+30:1800+30"]

1. e4 {[%emt 0:00:00]} e6 {[%emt 0:00:00]} 2. d4 {[%emt 0:00:00]} d5 {[%emt 0:00:00]} 3. Nc3 {[%emt 0:00:00]} Bb4 {[%emt 0:00:00]} 4. e5 {[%emt 0:00:07]} c5 {[%emt 0:00:00]} 5. a3 {[%emt 0:00:20]} Ba5 {[%emt 0:00:09]} 6. b4 {[%emt 0:00:42]} cxd4 {[%emt 0:00:19]} 7. Qg4 {[%emt 0:00:35]} Kf8 {[%emt 0:00:10]} 8. Nb5 {[%emt 0:00:30]} Bb6 {[%emt 0:00:06]} 9. Nf3 {[%emt 0:02:08]} Nc6 {[%emt 0:00:22]} 10. Bb2 {[%emt 0:01:08]} Nge7 {[%emt 0:01:00]} 11. Nbxd4 {[%emt 0:05:52]} h5 {[%emt 0:00:47]} 12. Qf4 {[%emt 0:03:35]} Ng6 {[%emt 0:00:35]} 13. Nxc6 {[%emt 0:03:38]} bxc6 {[%emt 0:00:04]} 14. Qd2 {[%emt 0:00:38]} Nh4 {[%emt 0:02:56]} 15. Nd4 {[%emt 0:12:47]} c5 {[%emt 0:11:19]} 16. bxc5 {[%emt 0:02:29]} Bxc5 {[%emt 0:02:15]} 17. Nb3 {[%emt 0:00:17]} Be7 {[%emt 0:02:18]} 18. f3 {[%emt 0:07:19]} Nf5 {[%emt 0:11:53]} 19. Bd3 {[%emt 0:03:25]} g6 {[%emt 0:02:51]} 20. a4 {[%emt 0:04:06]} Rb8 {[%emt 0:04:46]} 21. O-O {[%emt 0:04:11]} h4 {[%emt 0:05:50]} 22. a5 {[%emt 0:04:33]} Qc7 {[%emt 0:06:06]} 23. Qc3 {[%emt 0:05:25]} Qxc3 {[%emt 0:02:23]} 24. Bxc3 {[%emt 0:00:02]} Bd7 {[%emt 0:05:05]} 25. Rfb1 {[%emt 0:05:21]} Kg7 {[%emt 0:08:59]} 26. Bxf5 {[%emt 0:02:19]} gxf5 {[%emt 0:00:09]} 27. a6 {[%emt 0:00:44]} Rhc8 {[%emt 0:01:42]} 28. Bd4 {[%emt 0:00:17]} Rc6 {[%emt 0:01:38]} 29. Rb2 {[%emt 0:04:59]} Ra8 {[%emt 0:19:31]} 30. Kf2 {[%emt 0:04:15]} Bc8 {[%emt 0:01:27]} 31. Rba2 {[%emt 0:00:14]} Bd8 {[%emt 0:01:24]} 32. Ke2 {[%emt 0:03:17]} f4 {[%emt 0:02:58]} 33. Kd2 {[%emt 0:03:52]} Kg6 {[%emt 0:01:03]} 34. Ra4 {[%emt 0:01:08]} Rc4 {[%emt 0:04:24]} 35. Rxc4 {[%emt 0:03:14]} dxc4 {[%emt 0:00:14]} 36. Nc5 {[%emt 0:00:06]} f6 {[%emt 0:01:38]} 37. exf6 {[%emt 0:03:01]} Bxf6 {[%emt 0:00:36]} 38. Bxf6 {[%emt 0:00:07]} Kxf6 {[%emt 0:00:10]} 39. Kc3 {[%emt 0:02:01]} Rb8 {[%emt 0:00:31]} 40. Ra4 {[%emt 0:01:42]} Rb6 {[%emt 0:01:40]} 41. Rxc4 {[%emt 0:31:06]} Kf5 {[%emt 0:30:26]} 42. Nd3 {[%emt 0:01:06]} 1-0

[Event "Teplice Open 2019"]
[Site "Teplice"]
[Date "2019.06.23"]
[Round "9.25"]
[White "Kirk, Ezra"]
[Black "Liska, Jiri"]
[Result "1-0"]
[ECO "B31"]
[WhiteElo "2428"]
[BlackElo "2275"]
[Annotator "RC"]
[PlyCount "87"]
[EventDate "2019.06.15"]
[EventType "swiss"]
[EventCountry "CZE"]
[SourceTitle "playchess.com"]
[Source "ChessBase"]
[SourceQuality "1"]
[TimeControl "40/5400+30:1800+30"]

1. e4 {[%emt 0:02:21]} c5 {[%emt 0:00:00]} 2. Nf3 {[%emt 0:00:28]} Nc6 {[%emt 0:00:02]} 3. Bb5 {[%emt 0:00:04]} g6 {[%emt 0:00:15]} 4. O-O {[%emt 0:00:11]} Bg7 {[%emt 0:00:10]} 5. Re1 {[%emt 0:00:07]} e5 {[%emt 0:02:25]} 6. Bxc6 {[%emt 0:00:38]} dxc6 {[%emt 0:00:20]} 7. d3 {[%emt 0:00:11]} Qc7 {[%emt 0:07:05]} 8. Be3 {[%emt 0:03:02]} b6 {[%emt 0:00:43]} 9. Nbd2 {[%emt 0:00:53]} Nf6 {[%emt 0:02:56]} 10. a3 {[%emt 0:09:09]} Ng4 {[%emt 0:11:25]} 11. b4 {[%emt 0:01:08]} Nxe3 {[%emt 0:00:54]} 12. fxe3 {[%emt 0:00:10]} Qe7 {[%emt 0:02:57]} 13. c3 {[%emt 0:06:23]} O-O {[%emt 0:02:21]} 14. bxc5 {[%emt 0:00:57]} Qxc5 {[%emt 0:00:55]} 15. Qc1 {[%emt 0:04:31]} Bg4 {[%emt 0:08:30]} 16. d4 {[%emt 0:03:32]} Qe7 {[%emt 0:05:29]} 17. h3 {[%emt 0:03:05]} Be6 {[%emt 0:04:42]} 18. a4 {[%emt 0:21:09]} h5 {[%emt 0:08:23]} 19. c4 {[%emt 0:06:10]} Rac8 {[%emt 0:11:00]} 20. Qb1 {[%emt 0:06:04]} g5 {[%emt 0:10:09]} 21. Nxe5 {[%emt 0:04:07]} Bxe5 {[%emt 0:01:37]} 22. dxe5 {[%emt 0:00:05]} g4 {[%emt 0:04:33]} 23. hxg4 {[%emt 0:04:54]} hxg4 {[%emt 0:00:09]} 24. Rf1 {[%emt 0:00:57]} Qg5 {[%emt 0:06:20]} 25. Rf4 {[%emt 0:00:46]} Rcd8 {[%emt 0:00:51]} 26. Nf1 {[%emt 0:01:33]} Qxe5 {[%emt 0:00:42]} 27. Qe1 {[%emt 0:00:45]} Kg7 {[%emt 0:05:16]} 28. Ng3 {[%emt 0:00:34]} Rh8 {[%emt 0:01:12]} 29. Rd1 {[%emt 0:00:40]} Qg5 {[%emt 0:01:58]} 30. Qc3+ {[%emt 0:03:51]} Kh7 {[%emt 0:00:09]} 31. Rdf1 {[%emt 0:00:27]} Rhg8 {[%emt 0:01:10]} 32. Rf5 {[%emt 0:05:40]} Bxf5 {[%emt 0:00:35]} 33. Rxf5 {[%emt 0:00:03]} Qg7 {[%emt 0:00:06]} 34. Rh5+ {[%emt 0:00:06]} Kg6 {[%emt 0:00:08]} 35. e5 {[%emt 0:00:05]} f5 {[%emt 0:01:01]} 36. Rxf5 {[%emt 0:02:47]} Qd7 {[%emt 0:00:49]} 37. Rf6+ {[%emt 0:00:07]} Kg5 {[%emt 0:00:31]} 38. Rd6 {[%emt 0:02:35]} Qh7 {[%emt 0:00:34]} 39. e4 {[%emt 0:02:26]} Rxd6 {[%emt 0:00:17]} 40. exd6 {[%emt 0:00:07]} Qh8 {[%emt 0:00:50]} 41. e5 {[%emt 0:07:44]} Qh7 {[%emt 0:09:56]} 42. Qe3+ {[%emt 0:02:50]} Kh4 {[%emt 0:00:07]} 43. Nf5+ {[%emt 0:01:56]} Kh5 {[%emt 0:00:31]} 44. Qf4 {[%emt 0:00:22]} 1-0

[Event "Teplice Open 2019"]
[Site "Teplice"]
[Date "2019.06.23"]
[Round "9.29"]
[White "Georgescu, Lena"]
[Black "Di Nicolantonio, Lucas"]
[Result "1/2-1/2"]
[ECO "B07"]
[WhiteElo "2200"]
[BlackElo "2379"]
[Annotator "NA"]
[PlyCount "88"]
[EventDate "2019.06.15"]
[EventType "swiss"]
[EventCountry "CZE"]
[SourceTitle "playchess.com"]
[Source "ChessBase"]
[SourceQuality "1"]
[TimeControl "40/5400+30:1800+30"]

1. e4 {[%emt 0:00:00]} g6 {[%emt 0:04:39]} 2. d4 {[%emt 0:00:00]} Bg7 {[%emt 0:00:07]} 3. Nc3 {[%emt 0:00:00]} d6 {[%emt 0:00:24]} 4. g3 {[%emt 0:00:00]} Nf6 {[%emt 0:00:51]} 5. Bg2 {[%emt 0:00:19]} O-O {[%emt 0:00:10]} 6. Nge2 {[%emt 0:00:18]} e5 {[%emt 0:06:29]} 7. h3 {[%emt 0:00:28]} Nc6 {[%emt 0:02:17]} 8. Be3 {[%emt 0:00:51]} exd4 {[%emt 0:04:07]} 9. Nxd4 {[%emt 0:00:08]} Nxd4 {[%emt 0:02:16]} 10. Bxd4 {[%emt 0:00:25]} Re8 {[%emt 0:02:24]} 11. O-O {[%emt 0:01:00]} Bd7 {[%emt 0:00:35]} 12. Re1 {[%emt 0:02:42]} c5 {[%emt 0:02:28]} 13. Be3 {[%emt 0:14:52]} Bc6 {[%emt 0:00:59]} 14. Qd3 {[%emt 0:01:48]} Re6 {[%emt 0:05:26]} 15. Rad1 {[%emt 0:02:42]} Qd7 {[%emt 0:09:00]} 16. Bf4 {[%emt 0:10:08]} Rae8 {[%emt 0:06:41]} 17. Bxd6 {[%emt 0:37:25]} c4 {[%emt 0:01:05]} 18. Qd2 {[%emt 0:00:03]} Nxe4 {[%emt 0:01:50]} 19. Nxe4 {[%emt 0:00:11]} Bxe4 {[%emt 0:00:11]} 20. Bxe4 {[%emt 0:02:09]} Rxe4 {[%emt 0:00:08]} 21. Rxe4 {[%emt 0:00:35]} Rxe4 {[%emt 0:00:08]} 22. Qd5 {[%emt 0:08:18]} Re8 {[%emt 0:11:44]} 23. Bb4 {[%emt 0:02:33]} Qxh3 {[%emt 0:11:48]} 24. Qxb7 {[%emt 0:00:53]} h5 {[%emt 0:00:10]} 25. Qd7 {[%emt 0:04:48]} Qxd7 {[%emt 0:00:05]} 26. Rxd7 {[%emt 0:00:02]} Rb8 {[%emt 0:01:22]} 27. c3 {[%emt 0:02:43]} a5 {[%emt 0:05:43]} 28. Bxa5 {[%emt 0:00:26]} Rxb2 {[%emt 0:00:06]} 29. Rc7 {[%emt 0:00:38]} Rxa2 {[%emt 0:00:13]} 30. Bb4 {[%emt 0:00:14]} Rc2 {[%emt 0:03:40]} 31. Rxc4 {[%emt 0:00:21]} Bf6 {[%emt 0:00:07]} 32. Kg2 {[%emt 0:02:11]} Kg7 {[%emt 0:06:30]} 33. Re4 {[%emt 0:01:07]} g5 {[%emt 0:00:56]} 34. Re8 {[%emt 0:01:53]} g4 {[%emt 0:03:09]} 35. Re4 {[%emt 0:01:49]} Kg6 {[%emt 0:01:25]} 36. Rc4 {[%emt 0:00:43]} Kf5 {[%emt 0:02:44]} 37. Rc5+ {[%emt 0:00:47]} Be5 {[%emt 0:00:23]} 38. Ba5 {[%emt 0:02:49]} f6 {[%emt 0:05:38]} 39. Bc7 {[%emt 0:00:35]} Rxc3 {[%emt 0:00:24]} 40. Rxc3 {[%emt 0:00:05]} Bxc3 {[%emt 0:00:05]} 41. f3 {[%emt 0:01:21]} Be5 {[%emt 0:00:06]} 42. Bb6 {[%emt 0:00:35]} Ke6 {[%emt 0:01:20]} 43. fxg4 {[%emt 0:02:31]} hxg4 {[%emt 0:00:07]} 44. Ba7 {[%emt 0:01:43]} Kd5 {[%emt 0:00:10]} 1/2-1/2

[Event "Teplice Open 2019"]
[Site "Teplice"]
[Date "2019.06.23"]
[Round "9.30"]
[White "Krishna Teja, N."]
[Black "Pajeken, Wolfgang"]
[Result "1-0"]
[ECO "A67"]
[WhiteElo "2357"]
[BlackElo "2259"]
[Annotator "NA"]
[PlyCount "67"]
[EventDate "2019.06.15"]
[EventType "swiss"]
[EventCountry "CZE"]
[SourceTitle "playchess.com"]
[Source "ChessBase"]
[SourceQuality "1"]
[TimeControl "40/5400+30:1800+30"]

1. d4 {[%emt 1:27:09]} Nf6 {[%emt 0:00:09]} 2. c4 {[%emt 0:00:05]} e6 {[%emt 0:00:10]} 3. Nc3 {[%emt 0:00:08]} c5 {[%emt 0:00:26]} 4. d5 {[%emt 0:02:41]} exd5 {[%emt 0:00:08]} 5. cxd5 {[%emt 0:00:02]} d6 {[%emt 0:00:05]} 6. e4 {[%emt 0:00:05]} g6 {[%emt 0:00:07]} 7. f4 {[%emt 0:00:03]} Bg7 {[%emt 0:00:10]} 8. Bb5+ {[%emt 0:00:05]} Nfd7 {[%emt 0:00:14]} 9. a4 {[%emt 0:00:15]} O-O {[%emt 0:00:47]} 10. Nf3 {[%emt 0:00:05]} Na6 {[%emt 0:00:46]} 11. O-O {[%emt 0:00:07]} Nc7 {[%emt 0:00:40]} 12. Bd3 {[%emt 0:01:43]} a6 {[%emt 0:02:29]} 13. Re1 {[%emt 0:04:54]} Re8 {[%emt 0:05:55]} 14. e5 {[%emt 0:00:55]} dxe5 {[%emt 0:00:13]} 15. d6 {[%emt 0:00:05]} Ne6 {[%emt 0:00:25]} 16. fxe5 {[%emt 0:00:10]} Nd4 {[%emt 0:04:34]} 17. Nxd4 {[%emt 0:10:00]} cxd4 {[%emt 0:00:25]} 18. Nd5 {[%emt 0:00:16]} Rxe5 {[%emt 0:09:46]} 19. Nc7 {[%emt 0:01:16]} Rb8 {[%emt 0:17:46]} 20. Bf4 {[%emt 0:01:00]} Rxe1+ {[%emt 0:00:11]} 21. Qxe1 {[%emt 0:00:03]} Nf8 {[%emt 0:11:15]} 22. Bc4 {[%emt 0:08:21]} Bf5 {[%emt 0:04:54]} 23. Qe7 {[%emt 0:03:08]} Ne6 {[%emt 0:01:13]} 24. Nxe6 {[%emt 0:00:54]} fxe6 {[%emt 0:01:48]} 25. Bxe6+ {[%emt 0:00:07]} Kh8 {[%emt 0:01:16]} 26. Bxf5 {[%emt 0:00:16]} gxf5 {[%emt 0:00:21]} 27. Bg5 {[%emt 0:00:29]} Qxe7 {[%emt 0:03:33]} 28. Bxe7 {[%emt 0:00:03]} Bf8 {[%emt 0:00:19]} 29. Re1 {[%emt 0:00:40]} d3 {[%emt 0:04:02]} 30. Bf6+ {[%emt 0:01:25]} Bg7 {[%emt 0:01:39]} 31. d7 {[%emt 0:00:19]} Bxf6 {[%emt 0:02:00]} 32. Re8+ {[%emt 0:00:02]} Kg7 {[%emt 0:00:31]} 33. Rxb8 {[%emt 0:00:06]} Bd4+ {[%emt 0:00:24]} 34. Kf1 {[%emt 0:00:05]} 1-0

[Event "Teplice Open 2019"]
[Site "Teplice"]
[Date "2019.06.23"]
[Round "9.31"]
[White "Risting, Eivind Olav"]
[Black "Brejnik, Gustav"]
[Result "0-1"]
[ECO "E12"]
[WhiteElo "2357"]
[BlackElo "2114"]
[Annotator "NA"]
[PlyCount "94"]
[EventDate "2019.06.15"]
[EventType "swiss"]
[EventCountry "CZE"]
[SourceTitle "playchess.com"]
[Source "ChessBase"]
[SourceQuality "1"]
[TimeControl "40/5400+30:1800+30"]

1. d4 {[%emt 0:04:48]} Nf6 {[%emt 0:00:00]} 2. c4 {[%emt 0:00:11]} e6 {[%emt 0:00:00]} 3. Nf3 {[%emt 0:00:05]} b6 {[%emt 0:00:00]} 4. a3 {[%emt 0:00:21]} Bb7 {[%emt 0:00:06]} 5. Nc3 {[%emt 0:00:22]} d5 {[%emt 0:00:23]} 6. cxd5 {[%emt 0:01:29]} Nxd5 {[%emt 0:00:13]} 7. Qc2 {[%emt 0:01:36]} Nxc3 {[%emt 0:00:11]} 8. bxc3 {[%emt 0:01:01]} Nd7 {[%emt 0:00:41]} 9. e4 {[%emt 0:00:26]} c5 {[%emt 0:00:06]} 10. Bf4 {[%emt 0:03:57]} Be7 {[%emt 0:00:34]} 11. Bd3 {[%emt 0:03:48]} Qc8 {[%emt 0:22:08]} 12. Qb2 {[%emt 0:04:57]} O-O {[%emt 0:03:57]} 13. O-O {[%emt 0:02:37]} Ba6 {[%emt 0:12:01]} 14. Qe2 {[%emt 0:23:30]} Bxd3 {[%emt 0:00:00]} 15. Qxd3 {[%emt 0:00:02]} Rd8 {[%emt 0:00:00]} 16. Rfd1 {[%emt 0:03:53]} Qb7 {[%emt 0:00:00]} 17. d5 {[%emt 0:03:53]} exd5 {[%emt 0:06:37]} 18. exd5 {[%emt 0:00:21]} Nf6 {[%emt 0:00:19]} 19. c4 {[%emt 0:01:26]} b5 {[%emt 0:03:37]} 20. Rab1 {[%emt 0:11:43]} bxc4 {[%emt 0:02:22]} 21. Qe2 {[%emt 0:00:38]} Qd7 {[%emt 0:07:01]} 22. d6 {[%emt 0:01:52]} Bf8 {[%emt 0:01:52]} 23. Qxc4 {[%emt 0:01:04]} Qf5 {[%emt 0:10:38]} 24. Ng5 {[%emt 0:16:04]} Rd7 {[%emt 0:09:37]} 25. Rb5 {[%emt 0:02:13]} Rc8 {[%emt 0:05:28]} 26. Be3 {[%emt 0:02:41]} h6 {[%emt 0:00:40]} 27. Nf3 {[%emt 0:04:58]} Bxd6 {[%emt 0:00:33]} 28. Rbb1 {[%emt 0:02:23]} Ng4 {[%emt 0:01:25]} 29. Qc3 {[%emt 0:01:13]} Nxh2 {[%emt 0:01:27]} 30. Nxh2 {[%emt 0:00:41]} Bxh2+ {[%emt 0:00:06]} 31. Kf1 {[%emt 0:00:25]} Be5 {[%emt 0:01:26]} 32. Qc4 {[%emt 0:00:34]} Rcd8 {[%emt 0:01:40]} 33. Ke2 {[%emt 0:00:34]} Qh5+ {[%emt 0:01:55]} 34. g4 {[%emt 0:00:15]} Qg6 {[%emt 0:02:24]} 35. Bxc5 {[%emt 0:00:20]} Bf4 {[%emt 0:01:45]} 36. Rxd7 {[%emt 0:00:47]} Qxg4+ {[%emt 0:00:40]} 37. Ke1 {[%emt 0:00:41]} Rxd7 {[%emt 0:00:46]} 38. Rb8+ {[%emt 0:00:35]} Kh7 {[%emt 0:00:01]} 39. Qe4+ {[%emt 0:00:20]} f5 {[%emt 0:00:19]} 40. Rh8+ {[%emt 0:00:26]} Kxh8 {[%emt 0:00:49]} 41. Qe8+ {[%emt 0:30:07]} Kh7 {[%emt 0:30:04]} 42. Qxd7 {[%emt 0:00:07]} h5 {[%emt 0:03:56]} 43. Bd4 {[%emt 0:00:00]} Bh6 {[%emt 0:00:00]} 44. Bxa7 {[%emt 0:00:00]} h4 {[%emt 0:00:00]} 45. Kf1 {[%emt 0:00:00]} Bf4 {[%emt 0:00:00]} 46. Bd4 {[%emt 0:00:00]} Qd1+ {[%emt 0:00:00]} 47. Kg2 {[%emt 0:00:00]} h3+ {[%emt 0:00:00]} 0-1

[Event "Teplice Open 2019"]
[Site "Teplice"]
[Date "2019.06.23"]
[Round "9.34"]
[White "Freisler, Pavel"]
[Black "Mikes, Jan"]
[Result "1-0"]
[ECO "E66"]
[WhiteElo "2246"]
[BlackElo "2404"]
[Annotator "NA"]
[PlyCount "67"]
[EventDate "2019.06.15"]
[EventType "swiss"]
[EventCountry "CZE"]
[SourceTitle "playchess.com"]
[Source "ChessBase"]
[SourceQuality "1"]
[TimeControl "40/5400+30:1800+30"]

1. Nf3 {[%emt 0:00:00]} Nf6 {[%emt 0:00:00]} 2. c4 {[%emt 0:00:48]} g6 {[%emt 0:00:00]} 3. Nc3 {[%emt 0:00:11]} Bg7 {[%emt 0:00:00]} 4. g3 {[%emt 0:00:10]} O-O {[%emt 0:00:00]} 5. Bg2 {[%emt 0:00:11]} d6 {[%emt 0:00:04]} 6. d4 {[%emt 0:00:32]} Nc6 {[%emt 0:00:06]} 7. d5 {[%emt 0:01:30]} Na5 {[%emt 0:00:21]} 8. Nd2 {[%emt 0:00:07]} c5 {[%emt 0:00:44]} 9. O-O {[%emt 0:00:08]} a6 {[%emt 0:01:53]} 10. Qc2 {[%emt 0:00:29]} Rb8 {[%emt 0:01:05]} 11. a4 {[%emt 0:00:42]} e6 {[%emt 0:00:53]} 12. b3 {[%emt 0:00:52]} exd5 {[%emt 0:02:14]} 13. cxd5 {[%emt 0:00:09]} b5 {[%emt 0:02:20]} 14. axb5 {[%emt 0:00:22]} axb5 {[%emt 0:00:05]} 15. Bb2 {[%emt 0:00:04]} Re8 {[%emt 0:13:26]} 16. Rfe1 {[%emt 0:00:44]} b4 {[%emt 0:14:51]} 17. Nce4 {[%emt 0:06:41]} Nxd5 {[%emt 0:04:06]} 18. Bxg7 {[%emt 0:28:47]} Kxg7 {[%emt 0:00:04]} 19. Qd3 {[%emt 0:24:41]} Bb7 {[%emt 0:18:01]} 20. Rxa5 {[%emt 0:06:08]} Qxa5 {[%emt 0:00:48]} 21. Nxd6 {[%emt 0:00:05]} Qd8 {[%emt 0:02:58]} 22. N2c4 {[%emt 0:05:25]} Re7 {[%emt 0:11:29]} 23. Nxb7 {[%emt 0:10:16]} Rbxb7 {[%emt 0:00:05]} 24. Qxd5 {[%emt 0:00:08]} Qxd5 {[%emt 0:00:07]} 25. Bxd5 {[%emt 0:00:14]} Ra7 {[%emt 0:00:14]} 26. e4 {[%emt 0:02:23]} Ra2 {[%emt 0:00:06]} 27. Nd6 {[%emt 0:02:53]} Rd2 {[%emt 0:00:31]} 28. Rc1 {[%emt 0:02:13]} Ra7 {[%emt 0:02:32]} 29. Nxf7 {[%emt 0:02:56]} Rxd5 {[%emt 0:04:54]} 30. exd5 {[%emt 0:00:05]} Rxf7 {[%emt 0:01:42]} 31. Kg2 {[%emt 0:02:52]} Ra7 {[%emt 0:00:20]} 32. d6 {[%emt 0:00:28]} Kf6 {[%emt 0:00:11]} 33. Rxc5 {[%emt 0:00:24]} Ra3 {[%emt 0:00:02]} 34. Rd5 {[%emt 0:01:08]} 1-0

[Event "Teplice Open 2019"]
[Site "Teplice"]
[Date "2019.06.23"]
[Round "9.35"]
[White "Eden, James"]
[Black "Ehrke, Michael"]
[Result "1-0"]
[ECO "A07"]
[WhiteElo "2346"]
[BlackElo "2222"]
[Annotator "NA"]
[PlyCount "57"]
[EventDate "2019.06.15"]
[EventType "swiss"]
[EventCountry "CZE"]
[SourceTitle "playchess.com"]
[Source "ChessBase"]
[SourceQuality "1"]
[TimeControl "40/5400+30:1800+30"]

1. Nf3 {[%emt 0:09:42]} d5 {[%emt 0:00:06]} 2. b3 {[%emt 0:00:32]} Bf5 {[%emt 0:00:50]} 3. Bb2 {[%emt 0:00:23]} e6 {[%emt 0:00:40]} 4. g3 {[%emt 0:00:20]} h6 {[%emt 0:00:39]} 5. Bg2 {[%emt 0:00:22]} Nf6 {[%emt 0:00:26]} 6. O-O {[%emt 0:00:27]} Be7 {[%emt 0:00:24]} 7. d3 {[%emt 0:00:37]} O-O {[%emt 0:00:28]} 8. Nbd2 {[%emt 0:00:45]} Bh7 {[%emt 0:00:47]} 9. e4 {[%emt 0:05:14]} c5 {[%emt 0:02:31]} 10. Ne5 {[%emt 0:07:55]} Nbd7 {[%emt 0:04:29]} 11. f4 {[%emt 0:02:20]} d4 {[%emt 0:15:20]} 12. Nxd7 {[%emt 0:20:16]} Qxd7 {[%emt 0:05:36]} 13. g4 {[%emt 0:00:15]} e5 {[%emt 0:19:19]} 14. f5 {[%emt 0:02:33]} Qd8 {[%emt 0:00:53]} 15. Bc1 {[%emt 0:02:35]} g5 {[%emt 0:07:25]} 16. fxg6 {[%emt 0:02:46]} fxg6 {[%emt 0:02:36]} 17. Nc4 {[%emt 0:01:18]} Nd7 {[%emt 0:01:49]} 18. Bxh6 {[%emt 0:00:57]} Rxf1+ {[%emt 0:00:47]} 19. Qxf1 {[%emt 0:00:18]} g5 {[%emt 0:00:19]} 20. Qf3 {[%emt 0:03:33]} Bg6 {[%emt 0:02:16]} 21. Rf1 {[%emt 0:02:59]} Kh7 {[%emt 0:01:52]} 22. Qh3 {[%emt 0:01:04]} Kg8 {[%emt 0:00:10]} 23. Rf5 {[%emt 0:02:16]} b5 {[%emt 0:10:46]} 24. Nxe5 {[%emt 0:02:04]} Nxe5 {[%emt 0:03:19]} 25. Rxe5 {[%emt 0:00:14]} Qc7 {[%emt 0:07:45]} 26. Rf5 {[%emt 0:05:47]} Bxf5 {[%emt 0:03:54]} 27. exf5 {[%emt 0:00:15]} Rd8 {[%emt 0:00:39]} 28. Qh5 {[%emt 0:00:23]} Qe5 {[%emt 0:00:28]} 29. Bxg5 {[%emt 0:00:17]} 1-0